bitfinex/quotes_SOLUSD_20260228
["timestamp","ask_amount","ask_price","bid_price","bid_amount"]
[1772260304457,26.41987496,79.45,79.41,26.41987496]
[1772260304659,26.41987496,79.44,79.4,26.41987496]
[1772260304971,26.41987496,79.43,79.4,26.41987496]
[1772260305180,0.4721572,79.435,79.4,26.41987496]
[1772260305375,0.4721572,79.449,79.41,26.41987496]
[1772260305584,0.4721572,79.449,79.401,0.4546792]
[1772260305585,12.58602551,79.454,79.42,26.41987496]
[1772260305875,26.41987496,79.45,79.42,26.41987496]
[1772260306071,26.41987496,79.44,79.402,13.04878113]
[1772260306271,23.91987496,79.44,79.41,26.41987496]
[1772260306575,26.41987496,79.44,79.41,26.41987496]
[1772260306778,26.41987496,79.44,79.403,0.4546792]
[1772260307073,26.41987496,79.44,79.41,26.41987496]
[1772260307276,26.41987496,79.43,79.388,12.59623429]
[1772260307488,12.58986012,79.429,79.391,12.59588618]
[1772260307704,26.41987496,79.41,79.38,26.41987496]
[1772260307976,26.41987496,79.41,79.237,75.72202439]
[1772260307977,0.4721572,79.42,79.391,0.4546792]
[1772260308157,26.89203216,79.42,79.39,26.41987496]
[1772260308475,0.4721572,79.42,79.4,26.41987496]
[1772260308687,0.4721572,79.42,79.375,0.4546792]
[1772260308860,0.4721572,79.42,79.4,26.41987496]
[1772260309055,26.41987496,79.43,79.395,0.4546792]
[1772260309577,12.58986012,79.429,79.395,0.4546792]
[1772260309879,26.41987496,79.43,79.4,26.41987496]
[1772260310084,26.41987496,79.44,79.401,0.4546792]
[1772260310380,50.31873126,79.494,79.396,12.59509295]
[1772260310381,26.41987496,79.47,79.431,0.4546792]
[1772260310763,26.41987496,79.45,79.415,0.4546792]
[1772260311059,3.69383402,79.488,79.401,0.4546792]
[1772260311060,26.41987496,79.44,79.401,0.4546792]
[1772260311457,26.41987496,79.43,79.39,26.41987496]
[1772260311662,26.41987496,79.43,79.361,50.40210235]
[1772260311663,26.41987496,79.41,79.37,26.41987496]
[1772260311858,26.41987496,79.41,79.381,0.4546792]
[1772260312188,26.41987496,79.41,79.37,26.41987496]
[1772260312491,26.41987496,79.4,79.366,0.4546792]
[1772260312663,26.41987496,79.41,79.381,0.4546792]
[1772260312856,26.41987496,79.41,79.37,26.41987496]
[1772260313185,26.41987496,79.39,79.352,0.4546792]
[1772260313478,144.78339143,79.429,79.342,44.112828]
[1772260313479,0.4721572,79.396,79.343,0.4546792]
[1772260313657,26.41987496,79.38,79.35,26.41987496]
[1772260313865,26.41987496,79.38,79.341,12.603824]
[1772260314165,26.41987496,79.38,79.35,0.4546792]
[1772260314359,26.41987496,79.37,79.331,0.4546792]
[1772260314563,44.08338056,79.395,79.321,12.60700192]
[1772260314564,44.08338056,79.395,79.351,0.4546792]
[1772260314863,44.08338056,79.395,79.361,0.4546792]
[1772260314864,26.41987496,79.39,79.361,0.4546792]
[1772260315073,12.59525159,79.395,79.321,208.0155318]
[1772260315074,26.41987496,79.37,79.33,0.4546792]
[1772260315270,26.41987496,79.37,79.33,26.87455416]
[1772260315479,26.41987496,79.37,79.281,68.70570219]
[1772260315480,0.4721572,79.339,79.283,0.4546792]
[1772260315787,0.4721572,79.339,79.232,56.72]
[1772260315788,12.59763164,79.38,79.321,0.4546792]
[1772260315962,39.0175066,79.38,79.334,0.4546792]
[1772260316282,26.41987496,79.38,79.341,0.4546792]
[1772260316589,26.41987496,79.38,79.287,3.69383402]
[1772260316590,26.41987496,79.41,79.37,26.41987496]
[1772260316756,0.41227371,79.452,79.381,0.4546792]
[1772260316958,0.41227371,79.445,79.39,26.87455416]
[1772260317163,26.41987496,79.44,79.385,0.4546792]
[1772260317398,0.41227371,79.409,79.37,26.41987496]
[1772260317602,26.41987496,79.38,79.341,12.603824]
[1772260317773,26.41987496,79.35,79.312,12.60843251]
[1772260318096,26.41987496,79.35,79.32,26.41987496]
[1772260318268,26.41987496,79.35,79.312,44.584193]
[1772260318469,26.41987496,79.36,79.32,26.41987496]
[1772260318763,26.41987496,79.36,79.33,26.41987496]
[1772260319190,26.41987496,79.36,79.312,44.584193]
[1772260319191,0.28432314,79.368,79.312,13.06311171]
[1772260319374,0.28432314,79.368,79.312,0.4546792]
[1772260319375,26.41987496,79.33,79.312,0.4546792]
[1772260319565,26.41987496,79.34,79.312,0.4546792]
[1772260319772,12.60304998,79.346,79.312,0.4546792]
[1772260319966,26.41987496,79.33,79.312,0.4546792]
[1772260320294,26.41987496,79.34,79.3,26.41987496]
[1772260320589,100.79295276,79.371,79.294,12.61115858]
[1772260320590,0.4721572,79.359,79.32,26.41987496]
[1772260320825,0.4721572,79.359,79.294,12.61115858]
[1772260320826,0.4721572,79.369,79.33,26.41987496]
[1772260320973,12.59699687,79.384,79.294,12.61115858]
[1772260320974,0.4721572,79.339,79.294,12.61115858]
[1772260321168,0.4721572,79.352,79.294,12.61115858]
[1772260321402,26.41987496,79.33,79.29,26.41987496]
[1772260321582,12.59699687,79.384,79.242,50.47770263]
[1772260321583,0.4721572,79.319,79.271,12.61495376]
[1772260321784,3.69383402,79.358,79.271,12.61495376]
[1772260321785,26.41987496,79.31,79.271,12.61495376]
[1772260321972,176.44019305,79.347,79.233,3.69383402]
[1772260321973,0.4721572,79.289,79.233,3.69383402]
[1772260322297,31.50949774,79.342,79.233,3.69383402]
[1772260322298,0.4721572,79.304,79.234,196.07777026]
[1772260322488,26.41987496,79.31,79.28,26.41987496]
[1772260322669,26.89203216,79.36,79.3,26.41987496]
[1772260322869,26.89203216,79.36,79.243,3.69383402]
[1772260322870,0.4721572,79.369,79.254,5.36086188]
[1772260323070,0.4721572,79.329,79.273,3.69383402]
[1772260323283,0.4721572,79.339,79.274,0.28432314]
[1772260323606,26.41987496,79.32,79.28,26.41987496]
[1772260323893,26.41987496,79.31,79.254,94.63244756]
[1772260324068,50.37010386,79.413,79.302,0.4546792]
[1772260324263,50.37010386,79.413,79.3,26.41987496]
[1772260324264,0.4721572,79.384,79.35,26.41987496]
[1772260324467,0.4721572,79.382,79.332,0.4546792]
[1772260324675,0.4721572,79.38,79.35,26.41987496]
[1772260324900,0.4721572,79.38,79.303,3.69383402]
[1772260324901,0.4721572,79.389,79.306,0.4546792]
[1772260325196,0.4721572,79.379,79.34,26.41987496]
[1772260325595,0.4721572,79.379,79.332,0.4546792]
[1772260325596,0.4721572,79.393,79.35,26.41987496]
[1772260325775,0.4721572,79.369,79.297,31.98172309]
[1772260325972,144.84721767,79.394,79.34,26.41987496]
[1772260325973,26.41987496,79.38,79.34,26.41987496]
[1772260326579,50.35119961,79.442,79.37,26.41987496]
[1772260326794,26.41987496,79.42,79.39,26.41987496]
[1772260326994,26.41987496,79.42,79.38,26.41987496]
[1772260327199,26.41987496,79.41,79.37,26.41987496]
[1772260327496,26.41987496,79.44,79.4,26.41987496]
[1772260327698,26.61987496,79.46,79.42,26.41987496]
[1772260327899,26.41987496,79.43,79.396,12.59494926]
[1772260328086,26.41987496,79.43,79.39,26.87455416]
[1772260328283,0.4721572,79.399,79.36,26.41987496]
[1772260328479,0.4721572,79.399,79.351,31.50554895]
[1772260328480,26.41987496,79.39,79.351,0.4546792]
[1772260329096,26.41987496,79.39,79.348,12.6027121]
[1772260329097,26.41987496,79.38,79.343,12.60350184]
[1772260329295,26.41987496,79.39,79.351,0.4546792]
[1772260329679,26.41987496,79.39,79.352,12.60207682]
[1772260329883,26.41987496,79.37,79.34,26.41987496]
[1772260330083,26.41987496,79.37,79.3,50.44122981]
[1772260330084,26.41987496,79.36,79.328,12.60576827]
[1772260330291,44.08671226,79.389,79.28,50.45402655]
[1772260330292,0.4721572,79.359,79.311,12.60859149]
[1772260330489,26.41987496,79.36,79.321,0.46568565]
[1772260330879,26.41987496,79.36,79.311,44.13007022]
[1772260330880,26.41987496,79.37,79.331,0.46568565]
[1772260331081,44.08671226,79.389,79.32,26.41987496]
[1772260331082,0.45161489,79.359,79.32,26.41987496]
[1772260331294,26.41987496,79.35,79.312,0.46568565]
[1772260331495,26.41987496,79.35,79.32,26.41987496]
[1772260331800,26.41987496,79.35,79.273,54.15228901]
[1772260331801,26.41987496,79.34,79.3,26.41987496]
[1772260331987,26.41987496,79.33,79.295,12.61099066]
[1772260332196,0.45161489,79.309,79.23,50.48531065]
[1772260332391,0.45161489,79.309,79.22,50.49190669]
[1772260332392,245.7467444,79.35,79.226,32.0209169]
[1772260332393,26.41987496,79.26,79.226,32.0209169]
[1772260332596,26.41987496,79.26,79.227,0.46568565]
[1772260332795,26.41987496,79.24,79.213,13.08986831]
[1772260332998,26.41987496,79.3,79.231,0.46568565]
[1772260332999,26.41987496,79.28,79.231,0.46568565]
[1772260333198,26.41987496,79.24,79.213,12.62418266]
[1772260333410,26.41987496,79.22,79.2,13.10895709]
[1772260333704,26.41987496,79.23,79.2,13.10895709]
[1772260333908,63.32027961,79.298,79.2,13.10895709]
[1772260334111,26.41987496,79.22,79.2,13.10895709]
[1772260334311,0.28432314,79.256,79.19,26.41987496]
[1772260334495,460.28323177,79.299,79.17,26.41987496]
[1772260334496,26.41987496,79.21,79.17,26.41987496]
[1772260334696,3.69383402,79.257,79.123,0.03049037]
[1772260334697,0.45161489,79.179,79.123,0.03049037]
[1772260334905,0.45161489,79.179,79.047,50.85590007]
[1772260334906,3.69383402,79.237,79.047,50.85590007]
[1772260334907,6.531,79.145,79.047,0.2532239]
[1772260335210,0.45161489,79.131,79.047,12.90390603]
[1772260335412,0.45161489,79.099,79.048,12.65054144]
[1772260335712,0.45161489,79.099,79.047,0.2532239]
[1772260335713,0.45161489,79.089,79.047,0.2532239]
[1772260335897,26.41987496,79.12,79.051,0.46568565]
[1772260336101,12.62917052,79.182,79.071,0.46568565]
[1772260336308,12.62917052,79.182,79.051,3.69383402]
[1772260336309,31.57081109,79.188,79.061,5.82654753]
[1772260336605,26.41987496,79.22,79.131,5.36086188]
[1772260336805,26.41987496,79.22,79.061,8.05339487]
[1772260336806,26.41987496,79.18,79.093,0.14216157]
[1772260337015,12.61813731,79.251,79.15,26.41987496]
[1772260337194,12.61813731,79.251,79.19,26.41987496]
[1772260337195,26.41987496,79.25,79.19,26.41987496]
[1772260337394,26.41987496,79.21,79.16,26.41987496]
[1772260337593,26.41987496,79.21,79.038,23.87822124]
[1772260337594,26.41987496,79.18,79.13,26.41987496]
[1772260337795,0.5,79.149,79.099,3.69383402]
[1772260338113,0.5,79.159,79.1,26.41987496]
[1772260338326,0.5,79.215,79.15,26.41987496]
[1772260338491,0.5,79.215,79.17,26.41987496]
[1772260338692,0.14216157,79.214,79.123,3.69383402]
[1772260338892,0.5,79.209,79.16,26.41987496]
[1772260339396,0.5,79.209,79.17,26.41987496]
[1772260339590,0.5,79.209,79.15,26.41987496]
[1772260339789,0.5,79.199,79.15,26.41987496]
[1772260339989,0.5,79.199,79.17,26.41987496]
[1772260340288,0.5,79.199,79.134,44.22877649]
[1772260340501,0.5,79.179,79.134,12.63679328]
[1772260340704,0.5,79.179,79.134,44.22877649]
[1772260340905,12.6200482,79.239,79.15,26.41987496]
[1772260341103,26.41987496,79.21,79.16,26.41987496]
[1772260341409,26.41987496,79.21,79.134,145.32312277]
[1772260341410,26.41987496,79.19,79.14,26.41987496]
[1772260341711,277.64106056,79.239,79.099,12.64238485]
[1772260341712,26.41987496,79.15,79.099,12.64238485]
[1772260341903,26.41987496,79.2,79.061,63.24230656]
[1772260341904,26.41987496,79.12,79.061,63.24230656]
[1772260342092,26.41987496,79.16,79.11,26.41987496]
[1772260342289,0.28432314,79.159,79.11,26.41987496]
[1772260342489,26.41987496,79.14,79.09,26.41987496]
[1772260342716,5.36086188,79.205,79.068,31.61812882]
[1772260342717,26.41987496,79.16,79.11,26.41987496]
[1772260342921,0.45161489,79.169,79.12,26.41987496]
[1772260343094,0.45161489,79.169,79.14,26.41987496]
[1772260343295,3.69383402,79.198,79.16,26.41987496]
[1772260343600,3.69383402,79.198,79.1,26.41987496]
[1772260343601,0.14216157,79.168,79.104,44.24555016]
[1772260343801,26.41987496,79.16,79.11,26.41987496]
[1772260344018,12.63005077,79.177,79.13,26.41987496]
[1772260344203,26.41987496,79.2,79.15,26.41987496]
[1772260344611,26.41987496,79.19,79.14,26.41987496]
[1772260344814,1.57800388,79.214,79.16,26.41987496]
[1772260345003,39.04294994,79.22,79.17,26.41987496]
[1772260345204,0.45161489,79.179,79.12,26.41987496]
[1772260345412,3.69383402,79.198,79.11,26.41987496]
[1772260345413,0.45161489,79.159,79.11,26.41987496]
[1772260345714,0.45161489,79.159,79.104,44.24555016]
[1772260345715,3.69383402,79.198,79.15,26.41987496]
[1772260346019,50.48113551,79.238,79.131,44.23045329]
[1772260346020,26.41987496,79.19,79.131,44.23045329]
[1772260346318,12.62482798,79.209,79.141,0.46568565]
[1772260346501,12.62482798,79.209,79.16,26.41987496]
[1772260346919,26.41987496,79.19,79.14,26.41987496]
[1772260347120,26.41987496,79.18,79.131,44.23045329]
[1772260347306,23.99460076,79.19,79.14,23.99460076]
[1772260347817,23.99460076,79.19,79.12,50.55600794]
[1772260347818,0.45161489,79.193,79.15,23.99460076]
[1772260348203,23.99460076,79.19,79.141,44.22486447]
[1772260348721,0.45161489,79.189,79.141,44.22486447]
[1772260348920,0.45161489,79.179,79.132,12.6369967]
[1772260349222,12.62753813,79.192,79.111,0.46568565]
[1772260349223,1.57872136,79.178,79.111,0.46568565]
[1772260349396,1.57872136,79.178,79.11,23.99460076]
[1772260349397,23.99460076,79.17,79.121,0.46568565]
[1772260349597,0.45161489,79.177,79.121,0.46568565]
[1772260349598,12.62817598,79.188,79.141,12.63567556]
[1772260349794,0.45161489,79.169,79.106,0.46568565]
[1772260350102,0.45161489,79.169,79.12,23.99460076]
[1772260350615,0.45161489,79.169,79.13,23.99460076]
[1772260350855,23.99460076,79.18,79.13,23.99460076]
[1772260351317,23.99460076,79.17,79.121,0.46568565]
[1772260351619,0.28432314,79.183,79.121,0.46568565]
[1772260351620,12.62961138,79.179,79.131,12.63727237]
[1772260351818,31.57043996,79.188,79.131,12.63727237]
[1772260351819,0.45161489,79.197,79.15,23.99460076]
[1772260352015,50.48078555,79.239,79.131,63.18636185]
[1772260352016,0.45161489,79.179,79.131,12.63727237]
[1772260352315,23.99460076,79.15,79.101,0.46568565]
[1772260352518,0.45161489,79.156,79.11,23.99460076]
[1772260352718,0.73593803,79.177,79.12,23.99460076]
[1772260353025,0.28432314,79.168,79.107,0.46568565]
[1772260353230,208.34385573,79.196,79.12,23.99460076]
[1772260353231,0.45161489,79.163,79.12,23.99460076]
[1772260353521,23.99460076,79.2,79.15,23.99460076]
[1772260353698,12.62801651,79.189,79.141,12.63567556]
[1772260353901,0.09677022,79.199,79.141,12.63567556]
[1772260353902,12.62704734,79.196,79.15,23.99460076]
[1772260354229,12.62704734,79.196,79.141,12.63567556]
[1772260354230,23.99460076,79.17,79.12,23.99460076]
[1772260354423,12.62704734,79.196,79.12,23.99460076]
[1772260354424,0.09677022,79.189,79.121,94.79152182]
[1772260354726,0.09677022,79.189,79.104,50.5658095]
[1772260354727,0.28432314,79.187,79.1,23.99460076]
[1772260354907,23.99460076,79.17,79.12,23.99460076]
[1772260355108,3.69383402,79.193,79.11,23.99460076]
[1772260355109,23.99460076,79.16,79.11,23.99460076]
[1772260355310,3.69383402,79.193,79.031,37.64]
[1772260355311,23.99460076,79.17,79.12,23.99460076]
[1772260355629,12.62704734,79.196,79.031,37.64]
[1772260355630,23.99460076,79.22,79.114,0.28432314]
[1772260355931,23.99460076,79.19,79.113,3.69383402]
[1772260356107,1.57790429,79.219,79.16,23.99460076]
[1772260356310,23.99460076,79.19,79.14,23.99460076]
[1772260356506,5.36086188,79.235,79.12,23.99460076]
[1772260356507,23.99460076,79.17,79.12,23.99460076]
[1772260356731,23.99460076,79.16,79.113,0.5]
[1772260357128,0.28432314,79.168,79.12,23.99460076]
[1772260357314,0.28432314,79.168,79.067,12.64750148]
[1772260357315,0.28432314,79.129,79.067,12.64750148]
[1772260357509,23.99460076,79.09,79.04,23.99460076]
[1772260357829,23.99460076,79.09,79.007,50.62788946]
[1772260357830,0.28432314,79.059,79.001,0.5]
[1772260358007,3.69383402,79.067,79.001,0.5]
[1772260358008,3.69383402,79.067,79.002,0.5]
[1772260358207,0.28432314,79.134,79.061,0.5]
[1772260358405,50.546565,79.135,79.07,23.99460076]
[1772260358406,0.28432314,79.109,79.07,23.99460076]
[1772260358623,44.21927707,79.151,79.1,23.99460076]
[1772260358825,50.52587682,79.168,79.1,23.99460076]
[1772260358826,23.99460076,79.15,79.1,23.99460076]
[1772260359027,23.99460076,79.15,79.02,23.99460076]
[1772260359028,23.99460076,79.13,79.076,0.5]
[1772260359220,23.99460076,79.14,79.09,23.99460076]
[1772260359415,1.5792998,79.149,79.1,23.99460076]
[1772260359609,101.0433256,79.174,79.043,3.69383402]
[1772260359610,12.63120665,79.169,79.13,36.63197009]
[1772260359816,12.63120665,79.169,79.092,0.5]
[1772260359817,1.57892077,79.168,79.092,0.5]
[1772260360028,0.14216157,79.167,79.11,23.99460076]
[1772260360214,1.57896066,79.166,79.12,23.99460076]
[1772260360416,1.57896066,79.166,79.09,23.99460076]
[1772260360417,23.99460076,79.14,79.09,23.99460076]
[1772260360617,23.99460076,79.14,79.1,23.99460076]
[1772260360923,23.99460076,79.16,79.11,23.99460076]
[1772260361136,1.57910029,79.159,79.11,23.99460076]
[1772260361329,44.20922329,79.169,79.13,23.99460076]
[1772260361513,44.20922329,79.169,79.14,23.99460076]
[1772260361714,44.19638346,79.192,79.14,23.99460076]
[1772260361918,23.99460076,79.19,79.15,23.99460076]
[1772260362120,23.99460076,79.19,79.127,44.23268921]
[1772260362121,12.62753813,79.192,79.16,23.99460076]
[1772260362310,23.99460076,79.19,79.15,23.99460076]
[1772260362516,12.62668178,79.198,79.18,23.99460076]
[1772260363231,44.19313547,79.198,79.15,23.99460076]
[1772260363436,44.19313547,79.198,79.151,0.5]
[1772260363731,44.19313547,79.198,79.16,23.99460076]
[1772260364035,12.62668178,79.198,79.16,23.99460076]
[1772260364246,12.62668178,79.198,79.17,23.99460076]
[1772260364547,12.62668178,79.198,79.132,50.54801161]
[1772260364548,44.19313547,79.198,79.16,23.99460076]
[1772260364714,44.19313547,79.198,79.108,5.36086188]
[1772260364715,23.99460076,79.17,79.107,0.5]
[1772260365036,23.99460076,79.17,78.93,95.97840304]
[1772260365037,3.69383402,79.188,79.16,23.99460076]
[1772260365234,3.69383402,79.198,79.18,23.99460076]
[1772260365415,3.69383402,79.198,79.11,23.99460076]
[1772260365416,44.1696113,79.24,79.19,24.49460076]
[1772260365734,44.1696113,79.24,79.18,23.99460076]
[1772260365735,44.17574372,79.229,79.18,23.99460076]
[1772260365935,44.17574372,79.229,79.154,0.5]
[1772260365936,23.99460076,79.2,79.154,0.5]
[1772260366235,23.99460076,79.2,79.102,50.56709459]
[1772260366236,23.99460076,79.17,79.121,0.5]
[1772260366627,23.99460076,79.15,79.106,0.5]
[1772260366823,1.5792998,79.149,79.106,13.14115577]
[1772260367142,1.5792998,79.149,79.052,50.59959688]
[1772260367143,0.28432314,79.129,79.086,0.5]
[1772260367435,23.99460076,79.1,79.06,23.99460076]
[1772260367637,3.69383402,79.158,79.004,0.5]
[1772260367638,0.28432314,79.069,79.004,0.5]
[1772260367820,23.99460076,79.03,79.0,59.735]
[1772260368020,23.99460076,79.03,78.958,50.65975886]
[1772260368021,196.03379367,79.068,78.956,1e-08]
[1772260368022,0.28432314,79.009,78.956,1e-08]
[1772260368338,0.46354383,79.013,78.96,23.99460076]
[1772260368530,0.28432314,79.012,78.907,310.49209825]
[1772260368718,5.36086188,79.065,78.907,310.49209825]
[1772260368719,23.99460076,79.05,79.001,0.48177191]
[1772260369025,23.99460076,79.05,78.93,23.99460076]
[1772260369026,23.99460076,79.01,78.955,0.48177191]
[1772260369230,23.99460076,79.01,78.907,310.49209825]
[1772260369231,309.85986742,79.068,78.98,23.99460076]
[1772260369434,23.99460076,79.05,79.01,23.99460076]
[1772260369616,23.99460076,79.05,79.001,0.48177191]
[1772260369617,0.28432314,79.036,78.991,0.48177191]
[1772260369818,0.28432314,79.036,78.93,87.71079368]
[1772260369819,0.28432314,79.029,78.98,23.99460076]
[1772260370030,0.28432314,79.029,78.972,0.48177191]
[1772260370031,6.55651289,79.06,79.021,0.48177191]
[1772260370230,12.64878128,79.059,79.02,23.99460076]
[1772260370421,50.57604156,79.089,78.931,475.09850373]
[1772260370422,3.69383402,79.078,78.964,0.48177191]
[1772260370620,50.55918802,79.116,78.932,63.21192947]
[1772260370621,23.99460076,79.08,78.932,0.48177191]
[1772260370830,0.28432314,79.079,79.03,24.47637267]
[1772260371028,0.28432314,79.079,78.95,63.64091107]
[1772260371029,0.28432314,79.089,79.041,0.48177191]
[1772260371239,0.28432314,79.059,79.02,23.99460076]
[1772260371447,0.28432314,79.029,78.975,0.48177191]
[1772260371737,6.51035313,79.101,78.89,76.05449354]
[1772260371738,44.2477876,79.1,79.02,47.98920152]
[1772260371940,0.46354383,79.099,78.981,3.69383402]
[1772260372114,145.38558784,79.1,79.02,23.99460076]
[1772260372115,23.99460076,79.06,79.02,23.99460076]
[1772260372318,23.99460076,79.09,79.04,23.99460076]
[1772260372536,23.99460076,79.07,78.984,3.69383402]
[1772260372837,23.99460076,79.07,79.02,23.99460076]
[1772260372838,0.28432314,79.069,79.02,23.99460076]
[1772260373039,0.28432314,79.057,78.971,3.69383402]
[1772260373213,3.69383402,79.078,78.933,323.05879664]
[1772260373214,23.99460076,79.04,78.99,23.99460076]
[1772260373415,56.96,79.086,78.933,310.38982422]
[1772260373416,3.69383402,79.038,79.0,23.99460076]
[1772260373721,23.99460076,79.05,79.0,23.99460076]
[1772260373722,0.28432314,79.048,79.0,23.99460076]
[1772260373917,16.6286986,79.048,79.0,23.99460076]
[1772260374148,12.65054144,79.048,79.01,23.99460076]
[1772260374357,0.28432314,79.047,79.01,23.99460076]
[1772260374523,0.28432314,79.047,78.943,63.83983878]
[1772260374524,0.28432314,79.029,78.98,23.99460076]
[1772260374720,0.28432314,79.019,78.963,0.46070059]
[1772260375049,23.99460076,79.02,78.98,23.99460076]
[1772260375353,0.46354383,79.028,78.94,310.36230043]
[1772260375354,23.99460076,79.01,78.961,0.46070059]
[1772260375520,0.28432314,79.023,78.94,63.33924498]
[1772260375521,23.99460076,79.02,78.98,23.99460076]
[1772260375721,12.65678593,79.009,78.96,23.99460076]
[1772260375922,12.65678593,79.009,78.971,0.46070059]
[1772260376144,0.46354383,79.035,78.98,23.99460076]
[1772260376145,12.65592119,79.015,78.98,23.99460076]
[1772260376350,23.99460076,79.01,78.97,23.99460076]
[1772260376522,23.99460076,79.01,78.932,50.67633127]
[1772260376523,12.65592119,79.015,78.98,23.99460076]
[1772260376717,12.65592119,79.015,78.971,0.46070059]
[1772260376916,12.65592119,79.015,78.96,23.99460076]
[1772260376917,23.99460076,79.01,78.96,23.99460076]
[1772260377133,23.99460076,79.03,78.98,23.99460076]
[1772260377333,23.99460076,79.03,78.928,5.36086188]
[1772260377334,23.99460076,79.01,78.96,23.99460076]
[1772260377534,23.99460076,79.0,78.955,0.46070059]
[1772260377762,12.65838808,78.999,78.956,12.66528192]
[1772260377956,12.65838808,78.999,78.955,0.46070059]
[1772260378135,23.99460076,78.98,78.943,12.66725192]
[1772260378466,23.99460076,78.98,78.902,50.69518193]
[1772260378467,12.65751898,79.005,78.96,23.99460076]
[1772260378638,23.99460076,79.0,78.96,23.99460076]
[1772260378838,12.65751898,79.005,78.961,0.46070059]
[1772260379256,12.65342275,79.03,78.971,0.46070059]
[1772260379453,23.99460076,79.01,78.96,23.99460076]
[1772260379647,31.63797393,79.019,78.93,95.02090458]
[1772260379648,0.28432314,78.999,78.939,0.46070059]
[1772260379844,0.28432314,78.999,78.89,0.1]
[1772260379845,12.65854831,78.998,78.961,0.46070059]
[1772260380058,0.28432314,78.997,78.95,23.99460076]
[1772260380262,3.69383402,79.018,78.94,44.33747148]
[1772260380263,23.99460076,79.03,78.99,23.99460076]
[1772260380441,23.99460076,79.01,78.941,0.46070059]
[1772260380636,196.09827685,79.042,79.0,23.99460076]
[1772260380637,0.14216157,79.039,79.0,23.99460076]
[1772260380851,23.99460076,79.01,78.966,0.46070059]
[1772260381146,0.46354383,79.021,78.991,0.46070059]
[1772260381334,50.58846702,79.07,79.011,0.47265787]
[1772260381335,23.99460076,79.07,79.011,0.47265787]
[1772260381541,23.99460076,79.07,78.968,5.36086188]
[1772260381542,23.99460076,79.09,79.04,23.99460076]
[1772260381771,12.64238485,79.099,79.02,23.99460076]
[1772260381953,12.64238485,79.099,78.99,246.86669196]
[1772260381954,44.24834699,79.099,78.99,246.86669196]
[1772260382273,44.24834699,79.099,79.04,23.99460076]
[1772260382274,0.46354383,79.092,79.04,23.99460076]
[1772260382434,23.99460076,79.06,78.99,44.30940624]
[1772260382641,23.99460076,79.07,79.03,23.99460076]
[1772260383040,23.99460076,79.04,79.0,23.99460076]
[1772260383339,0.46354383,79.059,79.02,23.99460076]
[1772260383340,0.28432314,79.059,79.02,23.99460076]
[1772260383542,0.28432314,79.043,78.99,12.65983035]
[1772260383740,3.69383402,79.069,78.981,0.46070059]
[1772260383741,1.58143771,79.042,78.981,0.46070059]
[1772260383941,6.15095866,79.093,79.032,0.46070059]
[1772260384263,6.15095866,79.093,79.02,23.99460076]
[1772260384264,31.5906882,79.138,79.08,23.99460076]
[1772260384560,31.5906882,79.138,79.02,23.99460076]
[1772260384561,50.51202566,79.19,79.12,23.99460076]
[1772260384757,23.99460076,79.16,79.074,3.69383402]
[1772260384953,50.51044007,79.192,79.13,23.99460076]
[1772260385154,50.51044007,79.192,79.068,0.28432314]
[1772260385155,101.03535639,79.181,79.11,23.99460076]
[1772260385358,1.52809142,79.18,79.12,23.99460076]
[1772260385661,99.86669531,79.29,79.15,23.99460076]
[1772260385662,12.62961138,79.179,79.15,23.99460076]
[1772260385859,12.62961138,79.179,79.11,23.99460076]
[1772260385860,23.99460076,79.16,79.11,23.99460076]
[1772260386039,0.5,79.158,79.11,23.99460076]
[1772260386241,0.5,79.158,79.064,3.69383402]
[1772260386242,0.14216157,79.112,79.052,12.64990133]
[1772260386446,0.5,79.099,79.06,23.99460076]
[1772260386858,23.99460076,79.08,79.018,94.91508262]
[1772260387039,0.5,79.089,79.05,23.99460076]
[1772260387239,23.99460076,79.07,79.03,23.99460076]
[1772260387445,0.5,79.049,79.0,23.99460076]
[1772260387652,38.06,79.103,78.983,12.66095235]
[1772260387653,0.5,79.039,78.993,31.64828049]
[1772260387852,0.28432314,79.009,78.953,12.66576317]
[1772260388066,0.28432314,79.009,78.906,50.69314367]
[1772260388067,0.5,78.959,78.922,12.67073819]
[1772260388271,0.5,78.949,78.874,50.7135798]
[1772260388570,0.5,78.971,78.92,23.99460076]
[1772260388755,0.28432314,78.984,78.95,23.99460076]
[1772260389063,0.28432314,78.984,78.891,310.55506962]
[1772260389064,0.5,78.986,78.96,23.99460076]
[1772260389242,23.99460076,79.0,78.931,0.46070059]
[1772260389443,0.28432314,78.989,78.94,23.99460076]
[1772260389645,1.52809142,79.034,78.891,310.55506962]
[1772260389646,0.28432314,78.986,78.92,23.99460076]
[1772260389845,0.28432314,78.986,78.911,12.67250446]
[1772260389846,23.99460076,78.95,78.911,12.67250446]
[1772260390052,23.99460076,78.94,78.911,12.67250446]
[1772260390246,44.32062808,78.97,78.911,12.67250446]
[1772260390247,23.99460076,78.96,78.911,12.67250446]
[1772260390546,23.99460076,78.96,78.92,23.99460076]
[1772260390749,215.16041789,79.011,78.898,31.68627046]
[1772260390750,23.99460076,78.94,78.898,31.68627046]